Workbook

Sheet Лист1
B1: Время | C1: Команды | E1: Вероятность | I1: Кэф | K1: Счет | N1: Итог | O1: Ставка | P1: Выигрыш | Q1: Чистыми | R1: 10000
A2: Япония | B2: 08:00:00 | C2: Сеул - Хиросима | D2: 0.28 | E2: 0.53 | F2: 0.19 | G2: 1X | H2: 2.19 | I2: 3.35 | J2: 3.6 | K2: 4:1 | L2: =LEFT(K2:K2,1) -> 4 | M2: =RIGHT(K2,1) -> 1 | N2: =IF(L2=M2,"да","нет") -> нет | O2: 500 | P2: =IF(N2="да",O2*I2,"0") -> 0 | Q2: =P2-O2 -> -500
A3: Малайзия | B3: 16:00:00 | C3: Кедах - Келантан | D3: 0.25 | E3: 0.51 | F3: 0.24 | G3: 1X | H3: 2.41 | I3: 3.5 | J3: 2.67 | K3: 2:1 | L3: 2 | M3: 1 | N3: нет | O3: 500 | P3: 0 | Q3: -500
A4: Малайзия | B4: 16:00:00 | C4: Пулау Пинанг - Перак | D4: 0.27 | E4: 0.51 | F4: 0.22 | G4: 1X | H4: 2.02 | I4: 3.4 | J4: 3.2 | K4: 1:1 | L4: 1 | M4: 1 | N4: да | O4: 500 | P4: 1700 | Q4: 1200
A5: Малайзия | B5: 16:00:00 | C5: Теренггану ПБДКТ - ПДРМ ФА | D5: 0.24 | E5: 0.51 | F5: 0.25 | G5: X2 | H5: 2.3 | I5: 3.3 | J5: 2.75 | K5: 1:1 | L5: 1 | M5: 1 | N5: да | O5: 500 | P5: 1650 | Q5: 1150
A6: Польша | B6: 20:00:00 | C6: Подбескидзье - Гурник Ленчна | D6: 0.25 | E6: 0.53 | F6: 0.23 | G6: 1X | H6: 2.6 | I6: 3.1 | J6: 2.7 | K6: 2:0 | L6: 2 | M6: 0 | N6: нет | O6: 500 | P6: 0 | Q6: -500
A7: Италия | B7: 22:30:00 | C7: Салернитана - Энтелла | D7: 0.26 | E7: 0.54 | F7: 0.2 | G7: 1X | H7: 2.3 | I7: 3 | J7: 3.5 | K7: 2:2 | L7: 2 | M7: 2 | N7: да | O7: 500 | P7: 1500 | Q7: 1000
B8: 2016-03-01 | L8: =LEFT(K8:K8,1) ->  | M8: =RIGHT(K8,1) ->  | N8: =IF(L8=M8,"да","нет") -> да | O8: =SUM(O2:O7) -> 3000 | P8: =SUM(P2:P7) -> 4850 | Q8: =P8-O8 -> 1850 | R8: =R1+Q8 -> 11850
A9: Италия | B9: 16:30:00 | C9: Кьери - Сестри Леванте | D9: 0.29 | E9: 0.52 | F9: 0.19 | G9: 1X | H9: 2.16 | I9: 3.1 | J9: 3.2 | K9: 1:2 | L9: 1 | M9: 2 | N9: нет | O9: 550 | P9: =IF(N9="да",O9*I9,"0") -> 0 | Q9: -550
A10: ЛЧ Азии | B10: 18:30:00 | C10: Аль Джаиш - Аль Айн | D10: 0.21 | E10: 0.53 | F10: 0.27 | G10: X2 | H10: 2.9 | I10: 3.3 | J10: 2.33 | K10: 2:1 | L10: 2 | M10: 1 | N10: нет | O10: 550 | P10: 0 | Q10: -550
A11: ЛЧ Азии | B11: 19:30:00 | C11: Аль Джазира - Терактор-Сази | D11: 0.25 | E11: 0.52 | F11: 0.23 | G11: 1X | H11: 2.48 | I11: 3.5 | J11: 2.86 | K11: 0:1 | L11: 0 | M11: 1 | N11: нет | O11: 550 | P11: 0 | Q11: -550
A12: Венгрия Куб | B12: 20:00:00 | C12: Видеотон - Ференцварош | D12: 0.23 | E12: 0.53 | F12: 0.25 | G12: X2 | H12: 3.35 | I12: 3.4 | J12: 2.22 | K12: 1:2 | L12: 1 | M12: 2 | N12: нет | O12: 550 | P12: 0 | Q12: -550
A13: Германия | B13: 21:00:00 | C13: Штутгарт Киккерс - Веен | D13: 0.27 | E13: 0.53 | F13: 0.21 | G13: 1X | H13: 2.34 | I13: 3.25 | J13: 3.45 | K13: 1:0 | L13: =LEFT(K13:K13,1) -> 1 | M13: =RIGHT(K13,1) -> 0 | N13: =IF(L13=M13,"да","нет") -> нет | O13: 550 | P13: =IF(N13="да",O13*I13,"0") -> 0 | Q13: =P13-O13 -> -550
A14: Испания | B14: 22:00:00 | C14: Сельта - Вильярреал | D14: 0.29 | E14: 0.53 | F14: 0.19 | G14: 1X | H14: 2.17 | I14: 3.45 | J14: 3.85 | K14: 0:0 | L14: 0 | M14: 0 | N14: да | O14: 550 | P14: 1897.5 | Q14: 1347.5
B15: 2016-03-02 | N15: да | O15: =SUM(O9:O14) -> 3300 | P15: =SUM(P9:P14) -> 1897.5 | Q15: -1402.5 | R15: =R8+Q15 -> 10447.5
A16: Чехия Куб | B16: 18:00:00 | C16: Дукла Прага - Яблонец | D16: 0.25 | E16: 0.53 | F16: 0.22 | G16: 1X | H16: 2.36 | I16: 3.1 | J16: 3 | K16: 0:0 | L16: =LEFT(K16:K16,1) -> 0 | M16: =RIGHT(K16,1) -> 0 | N16: =IF(L16=M16,"да","нет") -> да | O16: 500 | P16: =IF(N16="да",O16*I16,"0") -> 1550 | Q16: =P16-O16 -> 1050
A17: Румыния Куб | B17: 21:30:00 | C17: Динамо Бх - Стяуа | D17: 0.2 | E17: 0.53 | F17: 0.27 | G17: X2 | H17: 2.85 | I17: 3.02 | J17: 2.87 | K17: 0:0 | L17: 0 | M17: 0 | N17: да | O17: 500 | P17: 1510 | Q17: 1010
B18: 2016-03-03 | N18: да | O18: =SUM(O16:O17) -> 1000 | P18: =SUM(P16:P17) -> 3060 | Q18: 2060 | R18: =R15+Q18 -> 12507.5
A19: Кувейт | B19: 17:05:00 | C19: Аль Шабаб Ахмади - Аль Джахра | D19: 0.21 | E19: 0.51 | F19: 0.29 | G19: X2 | H19: 2.9 | I19: 3.6 | J19: 2.1 | K19: 2:2 | L19: =LEFT(K19:K19,1) -> 2 | M19: =RIGHT(K19,1) -> 2 | N19: =IF(L19=M19,"да","нет") -> да | O19: 600 | P19: =IF(N19="да",O19*I19,"0") -> 2160 | Q19: =P19-O19 -> 1560
A20: Польша | B20: 20:00:00 | C20: Подбескидзье - Корона Кельце | D20: 0.27 | E20: 0.53 | F20: 0.21 | G20: 1X | H20: 2.37 | I20: 3.1 | J20: 3 | K20: 1:1 | L20: 1 | M20: 1 | N20: да | O20: 600 | P20: 1860 | Q20: 1260
A21: Австрия | B21: 20:30:00 | C21: Аустрия Клагенфурт - ФАК | D21: 0.23 | E21: 0.52 | F21: 0.25 | G21: X2 | H21: 1.6 | I21: 4.1 | J21: 4.85 | K21: 1:2 | L21: 1 | M21: 2 | N21: нет | O21: 600 | P21: 0 | Q21: -600
A22: Франция | B22: 22:00:00 | C22: Гавр - Валансьен | D22: 0.37 | E22: 0.51 | F22: 0.11 | G22: 1X | H22: 1.69 | I22: 3.65 | J22: 6.4 | K22: 3:2 | L22: 3 | M22: 2 | N22: нет | O22: 600 | P22: 0 | Q22: -600
A23: Франция | B23: 22:30:00 | C23: Марсель Консолат - Шатору | D23: 0.28 | E23: 0.53 | F23: 0.19 | G23: 1X | H23: 2.12 | I23: 3.13 | J23: 3.65 | K23: 2:0 | L23: 2 | M23: 0 | N23: нет | O23: 600 | P23: 0 | Q23: -600
A24: Аргентина | B24: 23:00:00 | C24: Кильмес - Олимпо | D24: 0.28 | E24: 0.54 | F24: 0.18 | G24: 1X | H24: 2.4 | I24: 3.1 | J24: 3.4 | K24: 1:1 | L24: =LEFT(K24:K24,1) -> 1 | M24: =RIGHT(K24,1) -> 1 | N24: =IF(L24=M24,"да","нет") -> да | O24: 600 | P24: =IF(N24="да",O24*I24,"0") -> 1860 | Q24: =P24-O24 -> 1260
B25: 2016-03-04 | N25: да | O25: =SUM(O19:O24) -> 3600 | P25: =SUM(P19:P24) -> 5880 | Q25: 2280 | R25: =R18+Q25 -> 14787.5
A26: Япония | B26: 12:30:00 | C26: Кобе - Ниигата | D26: 0.25 | E26: 0.53 | F26: 0.23 | G26: 1X | H26: 2.8 | I26: 3.14 | J26: 2.88 | K26: 6:3 | L26: 6 | M26: 3 | N26: нет | O26: 700 | P26: 0 | Q26: -700
A27: Иордания | B27: 16:00:00 | C27: Аль Сарих - Шабаб Аль-Ордон | D27: 0.22 | E27: 0.53 | F27: 0.25 | G27: X2 | H27: 2.85 | I27: 3 | J27: 2.4 | K27: 2:0 | L27: 2 | M27: 0 | N27: нет | O27: 700 | P27: 0 | Q27: -700
A28: Англия | B28: 18:00:00 | C28: Карлайсл - Нортхэмптон | D28: 0.21 | E28: 0.53 | F28: 0.26 | G28: X2 | H28: 3 | I28: 3.1 | J28: 2.37 | K28: 1:4 | L28: =LEFT(K28:K28,1) -> 1 | M28: =RIGHT(K28,1) -> 4 | N28: =IF(L28=M28,"да","нет") -> нет | O28: 700 | P28: =IF(N28="да",O28*I28,"0") -> 0 | Q28: =P28-O28 -> -700
A29: Англия | B29: 18:00:00 | C29: Плимут - Оксфорд Юн | D29: 0.21 | E29: 0.53 | F29: 0.25 | G29: X2 | H29: 2.93 | I29: 3.3 | J29: 2.64 | K29: 2:2 | L29: 2 | M29: 2 | N29: да | O29: 700 | P29: 2310 | Q29: 1610
A30: Англия | B30: 18:00:00 | C30: Рединг - Фулхэм | D30: 0.32 | E30: 0.51 | F30: 0.17 | G30: 1X | H30: 2.02 | I30: 3.55 | J30: 4.15 | K30: 2:2 | L30: 2 | M30: 2 | N30: да | O30: 700 | P30: 2485 | Q30: 1785
A31: Греция | B31: 18:15:00 | C31: Платаниас - Паниониос | D31: 0.26 | E31: 0.54 | F31: 0.21 | G31: 1X | H31: 2.67 | I31: 3 | J31: 3.01 | K31: 0:0 | L31: 0 | M31: 0 | N31: да | O31: 700 | P31: 2100 | Q31: 1400
B32: 2016-03-05 | N32: да | O32: =SUM(O26:O31) -> 4200 | P32: =SUM(P26:P31) -> 6895 | Q32: 2695 | R32: =R25+Q32 -> 17482.5
A33: Испания | B33: 19:00:00 | C33: Реал Унион - Сестао Ривер | D33: 0.22 | E33: 0.53 | F33: 0.25 | G33: X2 | H33: 1.75 | I33: 3.3 | J33: 5.3 | K33: 2:2 | L33: =LEFT(K33:K33,1) -> 2 | M33: =RIGHT(K33,1) -> 2 | N33: =IF(L33=M33,"да","нет") -> да | O33: 850 | P33: =IF(N33="да",O33*I33,"0") -> 2805 | Q33: =P33-O33 -> 1955
A34: Испания | B34: 19:00:00 | C34: Тенерифе - Альмерия | D34: 0.28 | E34: 0.53 | F34: 0.19 | G34: 1X | H34: 2.16 | I34: 3.4 | J34: 3.8 | K34: 0:0 | L34: 0 | M34: 0 | N34: да | O34: 850 | P34: 2890 | Q34: 2040
A35: Португалия | B35: 19:00:00 | C35: Тондела - Арока | D35: 0.21 | E35: 0.53 | F35: 0.25 | G35: X2 | H35: 3.14 | I35: 3.1 | J35: 2.62 | K35: 0:1 | L35: 0 | M35: 1 | N35: нет | O35: 850 | P35: 0 | Q35: -850
A36: Португалия | B36: 19:00:00 | C36: Униао Мадейра - Белененсеш | D36: 0.22 | E36: 0.53 | F36: 0.25 | G36: X2 | H36: 2.8 | I36: 3.1 | J36: 2.5 | K36: 0:0 | L36: 0 | M36: 0 | N36: да | O36: 850 | P36: 2635 | Q36: 1785
A37: Италия | B37: 19:30:00 | C37: Модена - Ливорно | D37: 0.26 | E37: 0.54 | F37: 0.2 | G37: 1X | H37: 2.42 | I37: 3.05 | J37: 3.55 | K37: 1:0 | L37: 1 | M37: 0 | N37: нет | O37: 850 | P37: 0 | Q37: -850
B38: 2016-03-06 | N38: да | O38: =SUM(O33:O37) -> 4250 | P38: =SUM(P33:P37) -> 8330 | Q38: 4080 | R38: =R32+Q38 -> 21562.5
A39: Румыния | B39: 19:00:00 | C39: Конкордия Кьяжна - АКС Поли Тимишоара | D39: 0.25 | E39: 0.53 | F39: 0.21 | G39: 1X | H39: 2.9 | I39: 3.05 | J39: 2.81 | K39: 0:0 | L39: =LEFT(K39:K39,1) -> 0 | M39: =RIGHT(K39,1) -> 0 | N39: =IF(L39=M39,"да","нет") -> да | O39: 1050 | P39: =IF(N39="да",O39*I39,"0") -> 3202.5 | Q39: =P39-O39 -> 2152.5
A40: Дания | B40: 21:00:00 | C40: Нордшелланд - Мидтъюлланн | D40: 0.21 | E40: 0.53 | F40: 0.27 | G40: X2 | H40: 3.45 | I40: 3.5 | J40: 2.23 | K40: 2:1 | L40: 2 | M40: 1 | N40: нет | O40: 1050 | P40: 0 | Q40: -1050
A41: Румыния | B41: 21:30:00 | C41: Тыргу Муреш - Пандури | D41: 0.27 | E41: 0.53 | F41: 0.2 | G41: 1X | H41: 2.5 | I41: 3 | J41: 2.9 | K41: 0:2 | L41: 0 | M41: 2 | N41: нет | O41: 1050 | P41: 0 | Q41: -1050
A42: Франция | B42: 22:30:00 | C42: Клермон - Мец | D42: 0.29 | E42: 0.53 | F42: 0.18 | G42: 1X | H42: 2.26 | I42: 3.09 | J42: 3.8 | K42: 2:1 | L42: 2 | M42: 1 | N42: нет | O42: 1050 | P42: 0 | Q42: -1050
B43: 2016-03-07 | N43: да | O43: =SUM(O39:O42) -> 4200 | P43: =SUM(P39:P42) -> 3202.5 | Q43: -997.5 | R43: =R38+Q43 -> 20565
A44: Венгрия | B44: 20:00:00 | C44: Вашаш - Дебрецен | D44: 0.17 | E44: 0.51 | F44: 0.31 | G44: X2 | H44: 4.55 | I44: 3.55 | J44: 1.85 | K44: 0:0 | L44: =LEFT(K44:K44,1) -> 0 | M44: =RIGHT(K44,1) -> 0 | N44: =IF(L44=M44,"да","нет") -> да | O44: 1000 | P44: =IF(N44="да",O44*I44,"0") -> 3550 | Q44: =P44-O44 -> 2550
A45: Шотландия | B45: 22:45:00 | C45: Бервик - Арброт | D45: 0.25 | E45: 0.51 | F45: 0.23 | G45: 1X | H45: 2.84 | I45: 3.02 | J45: 2.3 | K45: 3:0 | L45: 3 | M45: 0 | N45: нет | O45: 1000 | P45: 0 | Q45: -1000
A46: Англия | B46: 22:45:00 | C46: Ньюпорт Каунти - Барнет | D46: 0.19 | E46: 0.53 | F46: 0.27 | G46: X2 | H46: 2.35 | I46: 3.4 | J46: 3.3 | K46: 0:3 | L46: 0 | M46: 3 | N46: нет | O46: 1000 | P46: 0 | Q46: -1000
A47: Англия | B47: 22:45:00 | C47: Честер - Олдершот | D47: 0.27 | E47: 0.52 | F47: 0.21 | G47: 1X | H47: 2.38 | I47: 3.5 | J47: 3.15 | K47: 8:2 | L47: 8 | M47: 2 | N47: нет | O47: 1000 | P47: 0 | Q47: -1000
B48: 2016-03-08 | N48: да | O48: =SUM(O44:O47) -> 4000 | P48: =SUM(P44:P47) -> 3550 | Q48: -450 | R48: =R43+Q48 -> 20115
A49: Черногория | B49: 16:30:00 | C49: Бокель ФК - Рудар Пл | D49: 0.19 | E49: 0.53 | F49: 0.29 | G49: X2 | H49: 3.95 | I49: 3.19 | J49: 2.07 | K49: 1:1 | L49: =LEFT(K49:K49,1) -> 1 | M49: =RIGHT(K49,1) -> 1 | N49: =IF(L49=M49,"да","нет") -> да | O49: 1000 | P49: =IF(N49="да",O49*I49,"0") -> 3190 | Q49: =P49-O49 -> 2190
A50: Португалия | B50: 18:00:00 | C50: Атлетико СП - Спортинг Л II | D50: 0.28 | E50: 0.53 | F50: 0.19 | G50: 1X | H50: 2.33 | I50: 3 | J50: 3.2 | K50: 1:3 | L50: 1 | M50: 3 | N50: нет | O50: 1000 | P50: 0 | Q50: -1000
A51: Боливия | B51: 22:00:00 | C51: Спорт Бойз Варнес - Стронгест | D51: 0.26 | E51: 0.51 | F51: 0.23 | G51: 1X | H51: 2.18 | I51: 3.35 | J51: 3.25 | K51: 1:1 | L51: 1 | M51: 1 | N51: да | O51: 1000 | P51: 3350 | Q51: 2350
A52: Колумбия | B52: 23:00:00 | C52: Леонес ФК - Барранкилья | D52: 0.28 | E52: 0.53 | F52: 0.19 | G52: 1X | H52: 2.1 | I52: 3.1 | J52: 3.3 | K52: 2:2 | L52: 2 | M52: 2 | N52: да | O52: 1000 | P52: 3100 | Q52: 2100
B53: 2016-03-09 | N53: да | O53: =SUM(O49:O52) -> 4000 | P53: =SUM(P49:P52) -> 9640 | Q53: 5640 | R53: =R48+Q53 -> 25755
A54: Сингапур | B54: 14:30:00 | C54: Гейланг Интернешнл - Албирекс Ниигата (С) | D54: 0.17 | E54: 0.51 | F54: 0.33 | G54: X2 | H54: 3.85 | I54: 3.6 | J54: 1.92 | K54: 0:0 | L54: =LEFT(K54:K54,1) -> 0 | M54: =RIGHT(K54,1) -> 0 | N54: =IF(L54=M54,"да","нет") -> да | O54: 1250 | P54: =IF(N54="да",O54*I54,"0") -> 4500 | Q54: =P54-O54 -> 3250
A55: Иордания | B55: 16:00:00 | C55: Куфер Сум - Рамта | D55: 0.17 | E55: 0.53 | F55: 0.3 | G55: X2 | H55: 2.45 | I55: 3.1 | J55: 2.9 | K55: 1:1 | L55: 1 | M55: 1 | N55: да | O55: 1250 | P55: 3875 | Q55: 2625
B56: 2016-03-10 | N56: да | O56: =SUM(O54:O55) -> 2500 | P56: =SUM(P54:P55) -> 8375 | Q56: 5875 | R56: =R53+Q56 -> 31630
A57: Сингапур | B57: 14:45:00 | C57: Балестье - Уорриорс ФК | D57: 0.24 | E57: 0.52 | F57: 0.25 | G57: X2 | H57: 2.9 | I57: 3.4 | J57: 2.27 | K57: 1:1 | L57: =LEFT(K57:K57,1) -> 1 | M57: =RIGHT(K57,1) -> 1 | N57: =IF(L57=M57,"да","нет") -> да | O57: 1550 | P57: =IF(N57="да",O57*I57,"0") -> 5270 | Q57: =P57-O57 -> 3720
A58: Оман | B58: 18:30:00 | C58: Аль Наср Салала - Салала | D58: 0.3 | E58: 0.53 | F58: 0.17 | G58: 1X | H58: 2.02 | I58: 3.1 | J58: 3.6 | K58: 2:1 | L58: 2 | M58: 1 | N58: нет | O58: 1550 | P58: 0 | Q58: -1550
A59: Россия | B59: 19:00:00 | C59: Кубань - Кр. Советов | D59: 0.3 | E59: 0.53 | F59: 0.17 | G59: 1X | H59: 2.36 | I59: 3.15 | J59: 3.6 | K59: 2:0 | L59: 2 | M59: 0 | N59: нет | O59: 1550 | P59: 0 | Q59: -1550
A60: Польша | B60: 20:00:00 | C60: Корона Кельце - Шленск | D60: 0.25 | E60: 0.53 | F60: 0.22 | G60: 1X | H60: 2.52 | I60: 3.25 | J60: 3.14 | K60: 2:2 | L60: 2 | M60: 2 | N60: да | O60: 1550 | P60: 5037.5 | Q60: 3487.5
A61: Германия | B61: 21:00:00 | C61: Аален - Динамо Др | D61: 0.18 | E61: 0.53 | F61: 0.29 | G61: X2 | H61: 3.6 | I61: 3.3 | J61: 2.22 | K61: 0:0 | L61: 0 | M61: 0 | N61: да | O61: 1550 | P61: 5115 | Q61: 3565
A62: Франция | B62: 22:00:00 | C62: Булонь-сюр-Мер - Авранш | D62: 0.26 | E62: 0.53 | F62: 0.21 | G62: 1X | H62: 2.48 | I62: 3.06 | J62: 3.35 | K62: 2:0 | L62: 2 | M62: 0 | N62: нет | O62: 1550 | P62: 0 | Q62: -1550
A63: Франция | B63: 22:00:00 | C63: Лез Эрбье - Безье | D63: 0.26 | E63: 0.54 | F63: 0.2 | G63: 1X | H63: 2.4 | I63: 3.1 | J63: 3 | K63: 3:1 | L63: 3 | M63: 1 | N63: нет | O63: 1550 | P63: 0 | Q63: -1550
A64: Франция | B64: 22:00:00 | C64: Марсель Консолат - Амьен | D64: 0.29 | E64: 0.53 | F64: 0.18 | G64: 1X | H64: 1.79 | I64: 3.45 | J64: 5 | K64: 0:2 | L64: 0 | M64: 2 | N64: нет | O64: 1550 | P64: 0 | Q64: -1550
A65: Франция | B65: 22:00:00 | C65: Ньор - Париж | D65: 0.32 | E65: 0.53 | F65: 0.15 | G65: 1X | H65: 2.12 | I65: 3 | J65: 3.7 | K65: 2:1 | L65: 2 | M65: 1 | N65: нет | O65: 1550 | P65: 0 | Q65: -1550
A66: Франция | B66: 22:00:00 | C66: Тур - Лаваль | D66: 0.34 | E66: 0.53 | F66: 0.13 | G66: 1X | H66: 2.02 | I66: 3.06 | J66: 4.95 | K66: 1:1 | L66: 1 | M66: 1 | N66: да | O66: 1550 | P66: 4743 | Q66: 3193
A67: Франция | B67: 22:00:00 | C67: Мец - Аяччо | D67: 0.29 | E67: 0.54 | F67: 0.17 | G67: 1X | H67: 2.2 | I67: 3.04 | J67: 4.05 | K67: 3:2 | L67: =LEFT(K67:K67,1) -> 3 | M67: =RIGHT(K67,1) -> 2 | N67: =IF(L67=M67,"да","нет") -> нет | O67: 1550 | P67: =IF(N67="да",O67*I67,"0") -> 0 | Q67: =P67-O67 -> -1550
B68: 2016-03-11 | N68: да | O68: =SUM(O57:O67) -> 17050 | P68: =SUM(P57:P67) -> 20165.5 | Q68: 3115.5 | R68: =R56+Q68 -> 34745.5
A69: Германия | B69: 15:00:00 | C69: Сандхаузен - Фортуна Д | D69: 0.25 | E69: 0.53 | F69: 0.21 | G69: 1X | H69: 2.6 | I69: 3.1 | J69: 2.75 | K69: 1:0 | L69: 1 | M69: 0 | N69: нет | O69: 1700 | P69: 0 | Q69: -1700
A70: Италия | B70: 22:30:00 | C70: Джана Эрминьо - Мантова | D70: 0.27 | E70: 0.54 | F70: 0.19 | G70: 1X | H70: 2.24 | I70: 3.09 | J70: 3.55 | K70: 0:0 | L70: =LEFT(K70:K70,1) -> 0 | M70: =RIGHT(K70,1) -> 0 | N70: =IF(L70=M70,"да","нет") -> да | O70: 1700 | P70: =IF(N70="да",O70*I70,"0") -> 5253 | Q70: =P70-O70 -> 3553
A71: США | B71: 23:59:00 | C71: Реал Солт Лэйк - Сиэтл | D71: 0.29 | E71: 0.53 | F71: 0.19 | G71: 1X | H71: 2.2 | I71: 3.2 | J71: 3.5 | K71: 2:1 | L71: 2 | M71: 1 | N71: нет | O71: 1700 | P71: 0 | Q71: -1700
B72: 2016-03-12 | N72: да | O72: =SUM(O69:O71) -> 5100 | P72: =SUM(P69:P71) -> 5253 | Q72: 153 | R72: =R68+Q72 -> 34898.5
A73: Испания | B73: 18:00:00 | C73: Севилья - Вильярреал | D73: 0.37 | E73: 0.51 | F73: 0.12 | G73: 1X | H73: 1.8 | I73: 3.78 | J73: 5.3 | K73: 4:2 | L73: =LEFT(K73:K73,1) -> 4 | M73: =RIGHT(K73,1) -> 2 | N73: =IF(L73=M73,"да","нет") -> нет | O73: 1700 | P73: =IF(N73="да",O73*I73,"0") -> 0 | Q73: =P73-O73 -> -1700
A74: Греция | B74: 18:30:00 | C74: Ираклис 1908 - Верия | E74: 0.51 | I74: 3.15 | K74: 1:1 | L74: 1 | M74: 1 | N74: да | O74: 1700 | P74: 5355 | Q74: 3655
A75: Португалия | B75: 19:00:00 | C75: Национал - Риу Аве | D75: 0.28 | E75: 0.53 | F75: 0.19 | G75: 1X | H75: 2.26 | I75: 3.2 | J75: 3.1 | K75: 1:0 | L75: 1 | M75: 0 | N75: нет | O75: 1700 | P75: 0 | Q75: -1700
B76: 2016-03-13 | N76: да | O76: =SUM(O73:O75) -> 5100 | P76: =SUM(P73:P75) -> 5355 | Q76: 255 | R76: =R72+Q76 -> 35153.5
A77: Румыния | B77: 19:00:00 | C77: Конкордия Кьяжна - КС Университатя Кр | D77: 0.19 | E77: 0.54 | F77: 0.28 | G77: X2 | H77: 3.55 | I77: 3.12 | J77: 2.36 | K77: 1:0 | L77: 1 | M77: 0 | N77: нет | O77: 1700 | P77: 0 | Q77: -1700
A78: Турция | B78: 20:00:00 | C78: Сивасспор - Касымпаша | D78: 0.28 | E78: 0.52 | F78: 0.2 | G78: 1X | H78: 2.3 | I78: 3.1 | J78: 3.1 | K78: 1:0 | L78: 1 | M78: 0 | N78: нет | O78: 1700 | P78: 0 | Q78: -1700
A79: Израиль | B79: 20:00:00 | C79: Хапоэль Ришон - Хапоэль Афула | D79: 0.25 | E79: 0.53 | F79: 0.22 | G79: 1X | H79: 2.29 | I79: 3.12 | J79: 3 | K79: 1:1 | L79: 1 | M79: 1 | N79: да | O79: 1700 | P79: 5304 | Q79: 3604
A80: Италия | B80: 22:00:00 | C80: Алессандрия - Читаделла | D80: 0.25 | E80: 0.54 | F80: 0.21 | G80: 1X | H80: 2.33 | I80: 3 | J80: 3 | K80: 1:2 | L80: =LEFT(K80:K80,1) -> 1 | M80: =RIGHT(K80,1) -> 2 | N80: =IF(L80=M80,"да","нет") -> нет | O80: 1700 | P80: =IF(N80="да",O80*I80,"0") -> 0 | Q80: =P80-O80 -> -1700
A81: Германия | B81: 22:15:00 | C81: Кайзерслаутерн - Бохум | D81: 0.25 | E81: 0.53 | F81: 0.23 | G81: 1X | H81: 2.67 | I81: 3.3 | J81: 2.82 | K81: 0:2 | L81: 0 | M81: 2 | N81: нет | O81: 1700 | P81: 0 | Q81: -1700
B82: 2016-03-14 | N82: да | O82: =SUM(O77:O81) -> 8500 | P82: =SUM(P77:P81) -> 5304 | Q82: -3196 | R82: =R76+Q82 -> 31957.5
A83: Армения Куб | B83: 13:00:00 | C83: Бананц - Алашкерт | D83: 0.25 | E83: 0.51 | F83: 0.24 | G83: 1X | H83: 2.45 | I83: 3.2 | J83: 2.65 | K83: 0:1 | L83: 0 | M83: 1 | N83: нет | O83: 1550 | P83: 0 | Q83: -1550
A84: ЛЧ Азия | B84: 15:00:00 | C84: Пахтакор - Терактор-Сази | D84: 0.27 | E84: 0.53 | F84: 0.19 | G84: 1X | H84: 2.39 | I84: 3.13 | J84: 3.4 | K84: 1:0 | L84: 1 | M84: 0 | N84: нет | O84: 1550 | P84: 0 | Q84: -1550
A85: ЛЧ Азия | B85: 19:35:00 | C85: Аль Джазира - Аль Хилал Рияд | D85: 0.15 | E85: 0.51 | F85: 0.34 | G85: X2 | H85: 3.5 | I85: 3.8 | J85: 1.92 | K85: 1:1 | L85: 1 | M85: 1 | N85: да | O85: 1550 | P85: 5890 | Q85: 4340
B86: 2016-03-15 | L86: =LEFT(K86:K86,1) ->  | M86: =RIGHT(K86,1) ->  | N86: =IF(L86=M86,"да","нет") -> да | O86: =SUM(O83:O85) -> 4650 | P86: =SUM(P83:P85) -> 5890 | Q86: =P86-O86 -> 1240 | R86: =R82+Q86 -> 33197.5
A87: ЛЧ Азия | B87: 10:30:00 | C87: Шаньдун Лунен - Сеул | D87: 0.25 | E87: 0.52 | F87: 0.23 | G87: 1X | H87: 2.87 | I87: 3.17 | J87: 2.71 | K87: 1:4 | L87: =LEFT(K87:K87,1) -> 1 | M87: =RIGHT(K87,1) -> 4 | N87: =IF(L87=M87,"да","нет") -> нет | O87: 1650 | P87: =IF(N87="да",O87*I87,"0") -> 0 | Q87: =P87-O87 -> -1650
A88: Россия | B88: 12:00:00 | C88: Луч-Энергия - Факел | D88: 0.19 | E88: 0.52 | F88: 0.29 | G88: X2 | H88: 3.65 | I88: 3.3 | J88: 1.92 | K88: 1:0 | L88: 1 | M88: 0 | N88: нет | O88: 1650 | P88: 0 | Q88: -1650
A89: ЛЧ Азия | B89: 14:00:00 | C89: Мазия - Саут Чайна | D89: 0.23 | E89: 0.51 | F89: 0.25 | G89: X2 | H89: 3.3 | I89: 3.2 | J89: 2.07 | K89: 2:1 | L89: 2 | M89: 1 | N89: нет | O89: 1650 | P89: 0 | Q89: -1650
A90: Португалия | B90: 22:00:00 | C90: Санта Клара - Фейренсе | D90: 0.22 | E90: 0.5 | F90: 0.28 | G90: X2 | H90: 2.9 | I90: 3 | J90: 2.6 | K90: 0:0 | L90: =LEFT(K90:K90,1) -> 0 | M90: =RIGHT(K90,1) -> 0 | N90: =IF(L90=M90,"да","нет") -> да | O90: 1650 | P90: =IF(N90="да",O90*I90,"0") -> 4950 | Q90: =P90-O90 -> 3300
A91: Венесуэла | B91: 22:30:00 | C91: Эстудиантес де Каракас - Эстудиантес Мерида | D91: 0.29 | E91: 0.52 | F91: 0.19 | G91: 1X | H91: 2.3 | I91: 3.2 | J91: 2.85 | K91: 3:2 | L91: 3 | M91: 2 | N91: нет | O91: 1650 | P91: 0 | Q91: -1650
A92: Шотландия | B92: 22:45:00 | C92: Ст. Джонстон - Росс Каунти | D92: 0.25 | E92: 0.53 | F92: 0.22 | G92: 1X | H92: 2.59 | I92: 3.39 | J92: 2.89 | K92: 1:1 | L92: 1 | M92: 1 | N92: да | O92: 1650 | P92: 5593.5 | Q92: 3943.5
A93: Колумбия Куб | B93: 23:00:00 | C93: Вальедупар - Депортиво Пасто | D93: 0.23 | E93: 0.52 | F93: 0.25 | G93: X2 | H93: 2.6 | I93: 3.4 | J93: 2.37 | K93: 0:0 | L93: 0 | M93: 0 | N93: да | O93: 1650 | P93: 5610 | Q93: 3960
A94: Колумбия Куб | B94: 23:15:00 | C94: Реал Картахена - Хагуарес Кордоба | D94: 0.27 | E94: 0.53 | F94: 0.21 | G94: 1X | H94: 2.14 | I94: 3.3 | J94: 3.25 | K94: 3:2 | L94: 3 | M94: 2 | N94: нет | O94: 1650 | P94: 0 | Q94: -1650
B95: 2016-03-16 | N95: да | O95: =SUM(O87:O94) -> 13200 | P95: =SUM(P87:P94) -> 16153.5 | Q95: 2953.5 | R95: =R86+Q95 -> 36151
N96: да | P96: 0 | Q96: 0
N97: да | P97: 0 | Q97: 0
N98: да | P98: 0 | Q98: 0
N99: да | P99: 0 | Q99: 0
N100: да | P100: 0 | Q100: 0
N101: да | P101: 0 | Q101: 0
N102: да | P102: 0 | Q102: 0
N103: да | P103: 0 | Q103: 0
N104: да | P104: 0 | Q104: 0
N105: да | P105: 0 | Q105: 0
N106: да | P106: 0 | Q106: 0
N107: да | P107: 0 | Q107: 0
N108: да | P108: 0 | Q108: 0
N109: да | P109: 0 | Q109: 0
N110: да | P110: 0 | Q110: 0
N111: да | P111: 0 | Q111: 0
N112: да | P112: 0 | Q112: 0
N113: да | P113: 0 | Q113: 0
N114: да | P114: 0 | Q114: 0
N115: да | P115: 0 | Q115: 0
N116: да | P116: 0 | Q116: 0
N117: да | P117: 0 | Q117: 0
N118: да | P118: 0 | Q118: 0
N119: да | P119: 0 | Q119: 0
N120: да | P120: 0 | Q120: 0
N121: да | P121: 0 | Q121: 0
N122: да | P122: 0 | Q122: 0
N123: да | P123: 0 | Q123: 0
N124: да | P124: 0 | Q124: 0
N125: да | P125: 0 | Q125: 0
N126: да | P126: 0 | Q126: 0
N127: да | P127: 0 | Q127: 0
N128: да | P128: 0 | Q128: 0
N129: да | P129: 0 | Q129: 0
N130: да | P130: 0 | Q130: 0
N131: да | P131: 0 | Q131: 0
N132: да | P132: 0 | Q132: 0
N133: да | P133: 0 | Q133: 0
N134: да | P134: 0 | Q134: 0
L135: =LEFT(K135:K135,1) ->  | M135: =RIGHT(K135,1) ->  | N135: =IF(L135=M135,"да","нет") -> да | P135: =IF(N135="да",O135*I135,"0") -> 0 | Q135: =P135-O135 -> 0
N136: да | P136: 0 | Q136: 0
N137: да | P137: 0 | Q137: 0
N138: да | P138: 0 | Q138: 0
N139: да | P139: 0 | Q139: 0
N140: да | P140: 0 | Q140: 0
N141: да | P141: 0 | Q141: 0
N142: да | P142: 0 | Q142: 0
N143: да | P143: 0 | Q143: 0
N144: да | P144: 0 | Q144: 0
N145: да | P145: 0 | Q145: 0
N146: да | P146: 0 | Q146: 0
N147: да | P147: 0 | Q147: 0
N148: да | P148: 0 | Q148: 0
N149: да | P149: 0 | Q149: 0
N150: да | P150: 0 | Q150: 0
N151: да | P151: 0 | Q151: 0
N152: да | P152: 0 | Q152: 0
N153: да | P153: 0 | Q153: 0
N154: да | P154: 0 | Q154: 0
N155: да | P155: 0 | Q155: 0
N156: да | P156: 0 | Q156: 0
N157: да | P157: 0 | Q157: 0
N158: да | P158: 0 | Q158: 0
N159: да | P159: 0 | Q159: 0
N160: да | P160: 0 | Q160: 0
N161: да | P161: 0 | Q161: 0
N162: да | P162: 0 | Q162: 0
N163: да | P163: 0 | Q163: 0
N164: да | P164: 0 | Q164: 0
N165: да | P165: 0 | Q165: 0
N166: да | P166: 0 | Q166: 0
N167: да | P167: 0 | Q167: 0
N168: да | P168: 0 | Q168: 0
N169: да | P169: 0 | Q169: 0
N170: да | P170: 0 | Q170: 0
N171: да | P171: 0 | Q171: 0
N172: да | P172: 0 | Q172: 0
N173: да | P173: 0 | Q173: 0
N174: да | P174: 0 | Q174: 0
N175: да | P175: 0 | Q175: 0
N176: да | P176: 0 | Q176: 0
N177: да | P177: 0 | Q177: 0
N178: да | P178: 0 | Q178: 0
N179: да | P179: 0 | Q179: 0
N180: да | P180: 0 | Q180: 0
N181: да | P181: 0 | Q181: 0
N182: да | P182: 0 | Q182: 0
N183: да | P183: 0 | Q183: 0
N184: да | P184: 0 | Q184: 0
N185: да | P185: 0 | Q185: 0
N186: да | P186: 0 | Q186: 0
N187: да | P187: 0 | Q187: 0
N188: да | P188: 0 | Q188: 0
N189: да | P189: 0 | Q189: 0
N190: да | P190: 0 | Q190: 0
N191: да | P191: 0 | Q191: 0
N192: да | P192: 0 | Q192: 0
N193: да | P193: 0 | Q193: 0
N194: да | P194: 0 | Q194: 0
N195: да | P195: 0 | Q195: 0
N196: да | P196: 0 | Q196: 0
N197: да | P197: 0 | Q197: 0
N198: да | P198: 0 | Q198: 0
L199: =LEFT(K199:K199,1) ->  | M199: =RIGHT(K199,1) ->  | N199: =IF(L199=M199,"да","нет") -> да | P199: =IF(N199="да",O199*I199,"0") -> 0 | Q199: =P199-O199 -> 0
N200: да | P200: 0 | Q200: 0
... 5398 more rows
